lending/lending_fUSD_20240504
["ID","MTS","AMOUNT","RATE_DAILY","PERIOD"]
[325409340,1714854662604,-501.83861457,0.00041095,30]
[325409341,1714854662613,-2675.6,0.00041095,30]
[325409342,1714854662622,-1118.51,0.00041095,30]
[325409343,1714854662631,-171.8584866,0.00041095,30]
[325409344,1714854662640,-500.0,0.00041095,30]
[325409345,1714854662650,-822.35,0.00041095,30]
[325409346,1714854662659,-500.0,0.00041095,30]
[325409347,1714854662668,-630.86,0.00041095,30]
[325409348,1714854662677,-500.0,0.00041095,30]
[325409349,1714854662686,-502.95735357,0.00041095,30]
[325409350,1714854662695,-155.31572829,0.00041095,30]
[325409351,1714854662704,-500.0,0.00041095,30]
[325409352,1714854662713,-500.0,0.00041095,30]
[325409353,1714854662723,-500.0,0.00041095,30]
[325409354,1714854662732,-836.03,0.00041095,30]
[325409355,1714854662742,-501.90360006,0.00041095,30]
[325409356,1714854662751,-1860.36,0.00041095,30]
[325409357,1714854662760,-500.0,0.00041095,30]
[325409358,1714854662770,-500.0,0.00041095,30]
[325409359,1714854662779,-500.0,0.00041095,30]
[325409360,1714854662788,-500.0,0.00041095,30]
[325409361,1714854662797,-2241.45,0.00041095,30]
[325409362,1714854662806,-1281.07,0.00041095,30]
[325409363,1714854662815,-151.0,0.00041095,14]
[325409364,1714854662824,-151.0,0.00041095,14]
[325409365,1714854662833,-500.0,0.00041095,30]
[325409366,1714854662843,-500.0,0.00041095,30]
[325409367,1714854662852,-500.0,0.00041095,30]
[325409368,1714854662861,-500.0,0.00041095,30]
[325409369,1714854662871,-500.0,0.00041095,30]
[325409370,1714854662881,-501.73703008,0.00041095,30]
[325409371,1714854662890,-500.0,0.00041095,30]
[325409372,1714854662899,-500.0,0.00041095,30]
[325409373,1714854662909,-500.0,0.00041095,30]
[325409374,1714854662918,-500.0,0.00041095,30]
[325409375,1714854662928,-1291.11,0.00041095,30]
[325409376,1714854662938,-186.99894641,0.00041095,30]
[325409377,1714854662949,-500.0,0.00041095,30]
[325409378,1714854662958,-2014.06,0.00041095,30]
[325409379,1714854662968,-501.12389962,0.00041095,30]
[325409380,1714854662977,-500.0,0.00041095,30]
[325409381,1714854662986,-2241.48,0.00041095,30]
[325409382,1714854662995,-1184.12,0.00041095,30]
[325409383,1714854663005,-500.0,0.00041095,30]
[325409384,1714854663014,-656.08,0.00041095,30]
[325409385,1714854663023,-500.0,0.00041095,30]
[325409386,1714854663033,-500.0,0.00041095,30]
[325409387,1714854663042,-500.0,0.00041095,30]
[325409388,1714854663054,-1682.52,0.00041095,30]
[325409389,1714854663063,-500.0,0.00041095,30]
[325409390,1714854663073,-2122.54,0.00041095,30]
[325409391,1714854663082,-500.0,0.00041095,30]
[325409392,1714854663092,-500.0,0.00041095,30]
[325409393,1714854663102,-524.7,0.00041095,30]
[325409394,1714854663112,-500.0,0.00041095,30]
[325409395,1714854663122,-1479.32,0.00041095,30]
[325409396,1714854663131,-1245.27,0.00041095,30]
[325409397,1714854663140,-500.0,0.00041095,30]
[325409398,1714854663150,-500.0,0.00041095,30]
[325409399,1714854663159,-500.0,0.00041095,30]
[325409400,1714854663168,-1032.01,0.00041095,7]
[325409401,1714854663177,-500.0,0.00041095,30]
[325409402,1714854663187,-507.59621936,0.00041095,30]
[325409403,1714854663196,-1709.96,0.00041095,30]
[325409404,1714854663205,-500.0,0.00041095,30]
[325409405,1714854663215,-620.93,0.00041095,30]
[325409406,1714854663224,-2209.49,0.00041095,30]
[325409407,1714854663233,-1079.79,0.00041095,30]
[325409408,1714854663242,-500.0,0.00041095,30]
[325409409,1714854663251,-1361.18,0.00041095,30]
[325409410,1714854663265,-500.0,0.00041095,30]
[325409411,1714854663283,-1842.73,0.00041095,30]
[325409412,1714854663295,-1059.96,0.00041095,30]
[325409413,1714854663304,-500.0,0.00041095,30]
[325409414,1714854663312,-500.0,0.00041095,30]
[325409415,1714854663321,-500.0,0.00041095,30]
[325409416,1714854663330,-500.0,0.00041095,2]
[325409417,1714854663339,-501.91983432,0.00041095,30]
[325409418,1714854663348,-500.0,0.00041095,30]
[325409419,1714854663362,-503.3780506,0.00041095,30]
[325409420,1714854663371,-151.0,0.00041095,14]
[325409421,1714854663381,-151.0,0.00041095,14]
[325409422,1714854663390,-500.0,0.00041095,30]
[325409423,1714854663399,-500.0,0.00041095,30]
[325409424,1714854663408,-500.0,0.00041095,30]
[325409425,1714854663417,-500.0,0.00041095,30]
[325409426,1714854663433,-151.0,0.00041095,14]
[325409427,1714854663442,-500.0,0.00041095,30]
[325409428,1714854663451,-151.0,0.00041095,14]
[325409429,1714854663460,-500.0,0.00041095,30]
[325409430,1714854663470,-500.0,0.00041095,30]
[325409431,1714854663479,-500.0,0.00041095,30]
[325409432,1714854663488,-898.09,0.00041095,30]
[325409433,1714854663497,-500.0,0.00041095,30]
[325409434,1714854663506,-1067.0,0.00041095,30]
[325409435,1714854663518,-1447.48,0.00041095,30]
[325409436,1714854663526,-500.0,0.00041095,30]
[325409437,1714854663536,-500.0,0.00041095,30]
[325409438,1714854663545,-500.0,0.00041095,30]
[325409439,1714854663554,-503.21,0.00041095,30]
[325409440,1714854663564,-578.1,0.00041095,30]
[325409441,1714854663573,-500.0,0.00041095,30]
[325409442,1714854663582,-756.98,0.00041095,30]
[325409443,1714854663591,-500.0,0.00041095,30]
[325409444,1714854663601,-1638.84,0.00041095,30]
[325409445,1714854663612,-500.0,0.00041095,30]
[325409446,1714854663622,-500.0,0.00041095,30]
[325409447,1714854663631,-500.0,0.00041095,30]
[325409448,1714854663640,-500.0,0.00041095,30]
[325409449,1714854663650,-2071.76,0.00041095,2]
[325409450,1714854663659,-501.71658112,0.00041095,30]
[325409451,1714854663669,-500.0,0.00041095,30]
[325409452,1714854663679,-597.99,0.00041095,30]
[325409453,1714854663688,-500.0,0.00041095,30]
[325409454,1714854663698,-779.18,0.00041095,30]
[325409455,1714854663707,-500.0,0.00041095,30]
[325409456,1714854663716,-500.0,0.00041095,30]
[325409457,1714854663726,-1949.39,0.00041095,30]
[325409458,1714854663736,-500.70447651,0.00041095,30]
[325409459,1714854663745,-500.0,0.00041095,30]
[325409460,1714854663754,-300.0,0.00041095,7]
[325409461,1714854663763,-500.0,0.00041095,30]
[325409462,1714854663772,-979.31,0.00041095,30]
[325409463,1714854663781,-624.91777257,0.00041095,30]
[325409464,1714854663791,-500.0,0.00041095,30]
[325409465,1714854663801,-1798.4,0.00041095,30]
[325409466,1714854663812,-500.0,0.00041095,30]
[325409467,1714854663821,-500.0,0.00041095,30]
[325409468,1714854663830,-1065.77,0.00041095,30]
[325409469,1714854663841,-500.0,0.00041095,30]
[325409470,1714854663851,-500.0,0.00041095,30]
[325409471,1714854663863,-1787.76,0.00041095,30]
[325409472,1714854663872,-824.59,0.00041095,30]
[325409473,1714854663881,-500.0,0.00041095,30]
[325409474,1714854663890,-500.0,0.00041095,30]
[325409475,1714854663899,-500.0,0.00041095,30]
[325409476,1714854663909,-540.0,0.00041095,30]
[325409477,1714854663918,-151.0,0.00041095,14]
[325409478,1714854663927,-151.0,0.00041095,14]
[325409479,1714854663937,-500.0,0.00041095,30]
[325409480,1714854663946,-500.0,0.00041095,30]
[325409481,1714854663957,-1342.31,0.00041095,30]
[325409482,1714854663972,-807.44,0.00041095,30]
[325409483,1714854663981,-1000.0,0.00041095,15]
[325409484,1714854663991,-500.0,0.00041095,30]
[325409485,1714854664000,-500.0,0.00041095,30]
[325409486,1714854664009,-500.0,0.00041095,30]
[325409487,1714854664019,-500.0,0.00041095,30]
[325409488,1714854664029,-537.46167327,0.00041095,30]
[325409489,1714854664038,-1052.2,0.00041095,30]
[325409490,1714854664048,-500.0,0.00041095,30]
[325409491,1714854664057,-500.0,0.00041095,30]
[325409492,1714854664066,-971.181849,0.00041095,14]
[325409493,1714854664075,-971.181849,0.00041095,14]
[325409494,1714854664084,-500.0,0.00041095,30]
[325409495,1714854664094,-1368.03,0.00041095,30]
[325409496,1714854664103,-1176.66,0.00041095,30]
[325409497,1714854664116,-502.23668017,0.00041095,30]
[325409498,1714854664125,-604.04,0.00041095,30]
[325409499,1714854664134,-971.181849,0.00041095,14]
[325409500,1714854664144,-1453.37,0.00041095,30]
[325409501,1714854664153,-971.181849,0.00041095,14]
[325409502,1714854664163,-500.0,0.00041095,30]
[325409503,1714854664171,-1457.59,0.00041095,30]
[325409504,1714854664181,-1535.14,0.00041095,30]
[325409505,1714854664190,-604.17,0.00041095,30]
[325409506,1714854664199,-310.0,0.00041095,30]
[325409507,1714854664209,-632.1,0.00041095,30]
[325409508,1714854664219,-500.0,0.00041095,30]
[325409509,1714854664228,-500.0,0.00041095,30]
[325409510,1714854664238,-299.42129953,0.00041095,30]
[325409511,1714854664247,-500.0,0.00041095,30]
[325409512,1714854664256,-500.0,0.00041095,30]
[325409513,1714854664266,-630.11,0.00041095,30]
[325409514,1714854664277,-500.0,0.00041095,30]
[325409515,1714854664286,-542.49,0.00041095,30]
[325409516,1714854664296,-500.0,0.00041095,30]
[325409517,1714854664308,-500.0,0.00041095,30]
[325409518,1714854664318,-2005.82,0.00041095,30]
[325409519,1714854664328,-1044.79,0.00041095,30]
[325409520,1714854664339,-500.0,0.00041095,30]
[325409521,1714854664348,-1334.16,0.00041095,30]
[325409522,1714854664360,-666.59,0.00041095,30]
[325409523,1714854664370,-1274.64,0.00041095,30]
[325409524,1714854664379,-989.55,0.00041095,30]
[325409525,1714854664388,-500.0,0.00041095,30]
[325409526,1714854664398,-500.0,0.00041095,30]
[325409527,1714854664407,-500.0,0.00041095,30]
[325409528,1714854664416,-500.0,0.00041095,30]
[325409529,1714854664426,-1479.58,0.00041095,30]
[325409530,1714854664435,-287.48991144,0.00041095,30]
[325409531,1714854664448,-1005.43,0.00041095,30]
[325409532,1714854664457,-500.0,0.00041095,30]
[325409533,1714854664467,-502.10105816,0.00041095,30]
[325409534,1714854664476,-1196.31,0.00041095,30]
[325409535,1714854664485,-500.0,0.00041095,30]
[325409536,1714854664494,-500.0,0.00041095,30]
[325409537,1714854664504,-742.14,0.00041095,30]
[325409538,1714854664514,-500.0,0.00041095,30]
[325409539,1714854664524,-758.82,0.00041095,30]
[325409540,1714854664533,-500.0,0.00041095,30]
[325409541,1714854664542,-751.56,0.00041095,30]
[325409542,1714854664551,-543.37,0.00041095,30]
[325409543,1714854664560,-500.0,0.00041095,30]
[325409544,1714854664569,-1279.41,0.00041095,30]
[325409545,1714854664578,-501.7758198,0.00041095,30]
[325409546,1714854664587,-1273.99,0.00041095,30]
[325409547,1714854664596,-1906.83,0.00041095,30]
[325409548,1714854664606,-1065.45,0.00041095,30]
[325409549,1714854664615,-500.0,0.00041095,30]
[325409550,1714854664625,-151.0,0.00041095,14]
[325409551,1714854664635,-151.0,0.00041095,14]
[325409552,1714854664644,-642.59,0.00041095,30]
[325409553,1714854664653,-733.32,0.00041095,30]
[325409554,1714854664663,-5000.0,0.00041095,30]
[325409555,1714854664672,-500.0,0.00041095,30]
[325409556,1714854664682,-501.75873334,0.00041095,30]
[325409557,1714854664692,-1517.29,0.00041095,30]
[325409558,1714854664701,-151.0,0.00041095,14]
[325409559,1714854664713,-151.0,0.00041095,14]
[325409560,1714854664724,-500.0,0.00041095,30]
[325409561,1714854664734,-788.58,0.00041095,30]
[325409562,1714854664744,-500.0,0.00041095,2]
[325409563,1714854664753,-572.96,0.00041095,30]
[325409564,1714854664762,-1116.95,0.00041095,30]
[325409565,1714854664773,-500.0,0.00041095,30]
[325409566,1714854664783,-500.0,0.00041095,30]
[325409567,1714854664795,-500.0,0.00041095,30]
[325409568,1714854664803,-1386.64,0.00041095,30]
[325409569,1714854664815,-500.0,0.00041095,30]
[325409570,1714854664824,-500.0,0.00041095,30]
[325409571,1714854664835,-500.0,0.00041095,30]
[325409572,1714854664847,-940.33,0.00041095,30]
[325409573,1714854664858,-2861.42,0.00041095,30]
[325409574,1714854664867,-500.0,0.00041095,30]
[325409575,1714854664877,-500.0,0.00041095,30]
[325409576,1714854664889,-789.1,0.00041095,30]
[325409577,1714854664898,-229.443621,0.00041095,14]
[325409578,1714854664908,-229.443621,0.00041095,14]
[325409579,1714854664918,-1150.81,0.00041095,30]
[325409580,1714854664928,-500.0,0.00041095,30]
[325409581,1714854664939,-1243.18,0.00041095,30]
[325409582,1714854664948,-549.44,0.00041095,30]
[325409583,1714854664958,-229.443621,0.00041095,14]
[325409584,1714854664969,-1318.98,0.00041095,30]
[325409585,1714854664978,-229.443621,0.00041095,14]
[325409586,1714854664989,-501.58515385,0.00041095,30]
[325409587,1714854664998,-500.0,0.00041095,30]
[325409588,1714854665007,-501.30245915,0.00041095,30]
[325409589,1714854665017,-1517.45,0.00041095,30]
[325409590,1714854665027,-1774.03,0.00041095,30]
[325409591,1714854665036,-500.0,0.00041095,30]
[325409592,1714854665046,-500.0,0.00041095,30]
[325409593,1714854665056,-151.0,0.00041095,14]
[325409594,1714854665065,-500.0,0.00041095,30]
[325409595,1714854665075,-151.0,0.00041095,14]
[325409596,1714854665085,-676.44,0.00041095,30]
[325409597,1714854665095,-501.13096951,0.00041095,30]
[325409598,1714854665105,-1559.19,0.00041095,30]
[325409599,1714854665114,-500.0,0.00041095,30]
[325409600,1714854665123,-500.0,0.00041095,30]
[325409601,1714854665133,-500.0,0.00041095,30]
[325409602,1714854665143,-3587.31,0.00041095,30]
[325409603,1714854665152,-644.82,0.00041095,30]
[325409604,1714854665161,-500.0,0.00041095,30]
[325409605,1714854665170,-500.0,0.00041095,30]
[325409606,1714854665180,-500.0,0.00041095,30]
[325409607,1714854665190,-1528.49,0.00041095,30]
[325409608,1714854665199,-1214.12,0.00041095,30]
[325409609,1714854665209,-500.0,0.00041095,30]
[325409610,1714854665219,-500.0,0.00041095,30]
[325409611,1714854665228,-1168.25,0.00041095,30]
[325409612,1714854665238,-500.0,0.00041095,30]
[325409613,1714854665248,-500.0,0.00041095,30]
[325409614,1714854665257,-748.27,0.00041095,30]
[325409615,1714854665267,-500.0,0.00041095,30]
[325409616,1714854665276,-500.0,0.00041095,30]
[325409617,1714854665286,-324.00950035,0.00041095,30]
[325409618,1714854665296,-1450.85,0.00041095,30]
[325409619,1714854665306,-1094.08,0.00041095,30]
[325409620,1714854665315,-500.0,0.00041095,30]
[325409621,1714854665325,-500.0,0.00041095,30]
[325409622,1714854665335,-887.25,0.00041095,30]
[325409623,1714854665345,-500.0,0.00041095,30]
[325409624,1714854665356,-500.0,0.00041095,30]
[325409625,1714854665366,-501.46379344,0.00041095,30]
[325409626,1714854665376,-2565.17,0.00041095,30]
[325409627,1714854665385,-2293.49,0.00041095,30]
[325409628,1714854665395,-1326.98,0.00041095,30]
[325409629,1714854665405,-1994.98,0.00041095,30]
[325409630,1714854665415,-611.45,0.00041095,30]
[325409631,1714854665430,-501.084217,0.00041095,30]
[325409632,1714854665440,-525.24575025,0.00041095,30]
[325409633,1714854665450,-742.98,0.00041095,30]
[325409634,1714854665460,-500.0,0.00041095,30]
[325409635,1714854665473,-513.96918937,0.00041095,30]
[325409636,1714854665483,-654.16,0.00041095,30]
[325409637,1714854665493,-500.0,0.00041095,30]
[325409638,1714854665503,-1536.09,0.00041095,30]
[325409639,1714854665513,-1016.8,0.00041095,30]
[325409640,1714854665524,-500.0,0.00041095,30]
[325409641,1714854665534,-562.42,0.00041095,30]
[325409642,1714854665543,-500.0,0.00041095,30]
[325409643,1714854665553,-500.0,0.00041095,30]
[325409644,1714854665562,-1141.09,0.00041095,30]
[325409645,1714854665572,-561.91,0.00041095,30]
[325409646,1714854665582,-500.0,0.00041095,30]
[325409647,1714854665592,-500.0,0.00041095,30]
[325409648,1714854665602,-500.0,0.00041095,30]
[325409649,1714854665612,-617.79,0.00041095,30]
[325409650,1714854665622,-500.0,0.00041095,30]
[325409651,1714854665631,-500.0,0.00041095,30]
[325409652,1714854665642,-365.894625,0.00041095,14]
[325409653,1714854665651,-365.894625,0.00041095,14]
[325409654,1714854665661,-500.0,0.00041095,30]
[325409655,1714854665671,-2113.4,0.00041095,30]
[325409656,1714854665681,-307.378328,0.00041095,14]
[325409657,1714854665691,-501.52766784,0.00041095,30]
[325409658,1714854665701,-365.894625,0.00041095,14]
[325409659,1714854665710,-307.378328,0.00041095,14]
[325409660,1714854665720,-365.894625,0.00041095,14]
[325409661,1714854665730,-500.0,0.00041095,30]
[325409662,1714854665739,-2520.79,0.00041095,30]
[325409663,1714854665749,-501.27570377,0.00041095,30]
[325409664,1714854665758,-808.61,0.00041095,30]
[325409665,1714854665768,-500.0,0.00041095,30]
[325409666,1714854665777,-500.0,0.00041095,30]
[325409667,1714854665787,-894.47,0.00041095,30]
[325409668,1714854665797,-307.378328,0.00041095,14]
[325409669,1714854665807,-539.81,0.00041095,30]
[325409670,1714854665817,-307.378328,0.00041095,14]
[325409671,1714854665827,-500.0,0.00041095,30]
[325409672,1714854665837,-500.0,0.00041095,31]
[325409673,1714854665846,-500.0,0.00041095,32]
[325409674,1714854665856,-500.0,0.00041095,30]
[325409675,1714854665866,-500.0,0.00041095,30]
[325409676,1714854665875,-500.0,0.00041095,33]
[325409677,1714854665885,-500.0,0.00041095,30]
[325409678,1714854665895,-500.0,0.00041095,34]
[325409679,1714854665904,-500.0,0.00041095,30]
[325409680,1714854665914,-559.91850468,0.00041095,35]
[325409681,1714854665924,-355.02139817,0.00041095,30]
[325409682,1714854665934,-500.0,0.00041095,30]
[325409683,1714854665944,-500.0,0.00041095,31]
[325409684,1714854665953,-176.73577831,0.00041095,32]
[325409685,1714854665963,-500.0,0.00041095,30]
[325409686,1714854665972,-639.37492798,0.00041095,30]
[325409687,1714854665983,-1184.43,0.00041095,30]
[325409688,1714854665993,-1683.8,0.00041095,30]
[325409689,1714854666003,-1284.8,0.00041095,30]
[325409690,1714854666013,-1854.53,0.00041095,30]
[325409691,1714854666023,-348.57820464,0.00041095,30]
[325409692,1714854666034,-2878.64,0.00041095,2]
[325409693,1714854666043,-511.55944515,0.00041095,30]
[325409694,1714854666053,-500.0,0.00041095,30]
[325409695,1714854666064,-500.0,0.00041095,30]
[325409696,1714854666073,-501.17441458,0.00041095,30]
[325409697,1714854666084,-500.0,0.00041095,30]
[325409698,1714854666094,-609.66,0.00041095,30]
[325409699,1714854666104,-1403.17,0.00041095,30]
[325409700,1714854666115,-501.28274952,0.00041095,30]
[325409701,1714854666125,-1244.65,0.00041095,30]
[325409702,1714854666134,-500.0,0.00041095,30]
[325409703,1714854666144,-500.0,0.00041095,30]
[325409704,1714854666154,-500.0,0.00041095,30]
[325409705,1714854666165,-151.0,0.00041095,14]
[325409706,1714854666175,-502.67827536,0.00041095,30]
[325409707,1714854666186,-1176.71,0.00041095,30]
[325409708,1714854666196,-151.0,0.00041095,14]
[325409709,1714854666206,-304.08810546,0.00041095,30]
[325409710,1714854666216,-500.0,0.00041095,30]
[325409711,1714854666226,-500.0,0.00041095,2]
[325409712,1714854666236,-500.0,0.00041095,30]
[325409713,1714854666246,-500.13094341,0.00041095,30]
[325409714,1714854666256,-500.0,0.00041095,30]
[325409715,1714854666266,-500.0,0.00041095,30]
[325409716,1714854666281,-500.0,0.00041095,30]
[325409717,1714854666291,-327.050524,0.00041095,14]
[325409718,1714854666300,-380.878527,0.00041095,14]
[325409719,1714854666311,-327.050524,0.00041095,14]
[325409720,1714854666321,-380.878527,0.00041095,14]
[325409721,1714854666331,-500.0,0.00041095,30]
[325409722,1714854666342,-500.0,0.00041095,30]
[325409723,1714854666352,-1130.12,0.00041095,30]
[325409724,1714854666364,-500.0,0.00041095,30]
[325409725,1714854666376,-380.878527,0.00041095,14]
[325409726,1714854666387,-449.21673708,0.00041095,30]
[325409727,1714854666398,-380.878527,0.00041095,14]
[325409728,1714854666408,-327.050524,0.00041095,14]
[325409729,1714854666418,-500.0,0.00041095,30]
[325409730,1714854666429,-327.050524,0.00041095,14]
[325409731,1714854666443,-1000.0,0.00041095,30]
[325409732,1714854666453,-500.0,0.00041095,30]
[325409733,1714854666463,-675.45,0.00041095,30]
[325409734,1714854666474,-500.0,0.00041095,30]
[325409735,1714854666484,-1179.51,0.00041095,30]
[325409736,1714854666494,-500.0,0.00041095,30]
[325409737,1714854666504,-500.0,0.00041095,30]
[325409738,1714854666515,-1791.45,0.00041095,30]
[325409739,1714854666529,-500.0,0.00041095,30]
[325409740,1714854666539,-1289.41,0.00041095,30]
[325409741,1714854666549,-500.0,0.00041095,30]
[325409742,1714854666559,-1201.72,0.00041095,30]
[325409743,1714854666569,-595.79951568,0.00041095,30]
[325409744,1714854666579,-500.0,0.00041095,30]
[325409745,1714854666589,-500.0,0.00041095,30]
[325409746,1714854666600,-637.21,0.00041095,30]
[325409747,1714854666612,-1419.41,0.00041095,30]
[325409748,1714854666622,-500.75034243,0.00041095,30]
[325409749,1714854666632,-500.0,0.00041095,30]
[325409750,1714854666642,-914.53,0.00041095,30]
[325409751,1714854666651,-2276.3,0.00041095,30]
[325409752,1714854666661,-500.0,0.00041095,30]
[325409753,1714854666670,-500.0,0.00041095,30]
[325409754,1714854666680,-500.0,0.00041095,30]
[325409755,1714854666690,-500.0,0.00041095,30]
[325409756,1714854666700,-500.0,0.00041095,30]
[325409757,1714854666709,-500.0,0.00041095,30]
[325409758,1714854666719,-1268.79,0.00041095,30]
[325409759,1714854666729,-1028.57,0.00041095,30]
[325409760,1714854666738,-1474.03,0.00041095,30]
[325409761,1714854666748,-953.16,0.00041095,30]
[325409762,1714854666757,-1163.17,0.00041095,30]
[325409763,1714854666768,-500.0,0.00041095,30]
[325409764,1714854666779,-500.0,0.00041095,30]
[325409765,1714854666790,-871.48,0.00041095,30]
[325409766,1714854666800,-500.0,0.00041095,30]
[325409767,1714854666811,-508.72,0.00041095,30]
[325409768,1714854666821,-500.0,0.00041095,30]
[325409769,1714854666830,-515.17375404,0.00041095,30]
[325409770,1714854666841,-500.0,0.00041095,30]
[325409771,1714854666850,-1224.01,0.00041095,30]
[325409772,1714854666860,-500.0,0.00041095,30]
[325409773,1714854666871,-500.0,0.00041095,30]
[325409774,1714854666883,-500.0,0.00041095,30]
[325409775,1714854666893,-500.0,0.00041095,30]
[325409776,1714854666904,-1781.34,0.00041095,30]
[325409777,1714854666915,-1141.19,0.00041095,30]
[325409778,1714854666927,-765.87,0.00041095,30]
[325409779,1714854666938,-2538.41,0.00041095,30]
[325409780,1714854666949,-500.0,0.00041095,30]
[325409781,1714854666959,-500.0,0.00041095,30]
[325409782,1714854666969,-500.57828743,0.00041095,30]
[325409783,1714854666979,-973.91139556,0.00041095,2]
[325409784,1714854666988,-300.0,0.00041095,2]
[325409785,1714854666999,-500.0,0.00041095,30]
[325409786,1714854667008,-500.0,0.00041095,30]
[325409787,1714854667018,-1079.35,0.00041095,30]
[325409788,1714854667028,-500.0,0.00041095,30]
[325409789,1714854667039,-500.0,0.00041095,30]
[325409790,1714854667048,-1563.78,0.00041095,30]
[325409791,1714854667060,-1302.53,0.00041095,30]
[325409792,1714854667071,-686.21,0.00041095,30]
[325409793,1714854667081,-500.0,0.00041095,30]
[325409794,1714854667091,-2399.83,0.00041095,30]
[325409795,1714854667101,-500.0,0.00041095,30]
[325409796,1714854667112,-1147.42,0.00041095,30]
[325409797,1714854667122,-500.0,0.00041095,30]
[325409798,1714854667132,-1719.78,0.00041095,30]
[325409799,1714854667143,-500.0,0.00041095,30]
[325409800,1714854667153,-500.0,0.00041095,30]
[325409801,1714854667162,-1093.24,0.00041095,30]
[325409802,1714854667172,-500.0,0.00041095,30]
[325409803,1714854667182,-500.0,0.00041095,30]
[325409804,1714854667191,-500.0,0.00041095,30]
[325409805,1714854667201,-500.0,0.00041095,30]
[325409806,1714854667507,-500.0,0.00041095,30]
[325409807,1714854667521,-500.0,0.00041095,30]
[325409808,1714854667531,-1018.39,0.00041095,30]
[325409809,1714854667540,-503.66410308,0.00041095,30]
[325409810,1714854667550,-674.07,0.00041095,30]
[325409811,1714854667560,-500.0,0.00041095,30]
[325409812,1714854667569,-182.12695433,0.00041095,30]
[325409813,1714854667579,-500.0,0.00041095,30]
[325409814,1714854667589,-1341.34,0.00041095,30]
[325409815,1714854667599,-500.0,0.00041095,30]
[325409816,1714854667611,-500.0,0.00041095,30]
[325409817,1714854667621,-724.92,0.00041095,30]
[325409818,1714854667631,-1508.65,0.00041095,30]
[325409819,1714854667642,-501.32994077,0.00041095,30]
[325409820,1714854667652,-413.98868427,0.00041095,30]
[325409821,1714854667662,-500.0,0.00041095,30]
[325409822,1714854667672,-151.0,0.00041095,14]
[325409823,1714854667682,-151.0,0.00041095,14]
[325409824,1714854667692,-736.73,0.00041095,30]
[325409825,1714854667702,-1107.81,0.00041095,30]
[325409826,1714854667712,-500.0,0.00041095,30]
[325409827,1714854667721,-500.0,0.00041095,30]
[325409828,1714854667730,-500.0,0.00041095,30]
[325409829,1714854667740,-500.0,0.00041095,30]
[325409830,1714854667749,-501.15143629,0.00041095,30]
[325409831,1714854667759,-188.496108,0.00041095,14]
[325409832,1714854667768,-500.0,0.00041095,30]
[325409833,1714854667777,-500.0,0.00041095,30]
[325409834,1714854667787,-500.0,0.00041095,30]
[325409835,1714854667796,-500.0,0.00041095,30]
[325409836,1714854667805,-1228.95,0.00041095,30]
[325409837,1714854667814,-1797.76,0.00041095,30]
[325409838,1714854667823,-188.496108,0.00041095,14]
[325409839,1714854667832,-1538.15,0.00041095,30]